lending/lending_fUSD_20250719
["ID","MTS","AMOUNT","RATE_DAILY","PERIOD"]
[373272797,1752925949401,-151.0,0.00020712,2]
[373272798,1752925949411,-151.0,0.00020712,2]
[373272799,1752925949420,-257.772456,0.00020712,2]
[373272800,1752925949429,-480.0,0.00020712,2]
[373272801,1752925949439,-2978.15,0.00020712,2]
[373272802,1752925949448,-480.0,0.00020712,2]
[373272803,1752925949457,-588.55,0.00020712,2]
[373272804,1752925949467,-534.31,0.00020712,2]
[373272805,1752925949476,-151.0,0.00020712,2]
[373272806,1752925949486,-151.0,0.00020712,2]
[373272807,1752925949496,-151.0,0.00020712,2]
[373272808,1752925949505,-151.0,0.00020712,2]
[373272809,1752925949514,-151.0,0.00020712,2]
[373272810,1752925949523,-874.31,0.00020712,2]
[373272811,1752925949532,-151.0,0.00020712,2]
[373272812,1752925949542,-151.0,0.00020712,2]
[373272813,1752925949554,-5707.74,0.00020712,2]
[373272814,1752925949568,-1001.03,0.00020712,2]
[373272815,1752925949578,-742.13,0.00020712,2]
[373272816,1752925949587,-180.938483,0.00020712,2]
[373272817,1752925949597,-1089.17,0.00020712,2]
[373272818,1752925949606,-480.0,0.00020712,2]
[373272819,1752925949616,-480.0,0.00020712,2]
[373272820,1752925949625,-827.74,0.00020712,2]
[373272821,1752925949635,-883.65,0.00020712,2]
[373272822,1752925949644,-451.17,0.00020712,2]
[373272823,1752925949653,-630.85,0.00020712,2]
[373272824,1752925949663,-480.0,0.00020712,2]
[373272825,1752925949672,-725.32,0.00020712,2]
[373272826,1752925949682,-546.59,0.00020712,2]
[373272827,1752925949692,-594.58,0.00020712,2]
[373272828,1752925949702,-961.48,0.00020712,2]
[373272829,1752925949712,-480.0,0.00020712,2]
[373272830,1752925949721,-480.0,0.00020712,2]
[373272831,1752925949731,-1312.32,0.00020712,2]
[373272832,1752925949741,-481.15,0.00020712,2]
[373272833,1752925949750,-3316.07,0.00020712,2]
[373272834,1752925949759,-480.0,0.00020712,2]
[373272835,1752925949769,-493.61,0.00020712,2]
[373272836,1752925949778,-480.0,0.00020712,2]
[373272837,1752925949787,-480.0,0.00020712,2]
[373272838,1752925949797,-1168.4,0.00020712,2]
[373272839,1752925949806,-3075.77,0.00020712,2]
[373272840,1752925949816,-558.22,0.00020712,2]
[373272841,1752925949826,-480.0,0.00020712,2]
[373272842,1752925949835,-2213.01,0.00020712,2]
[373272843,1752925949845,-538.42,0.00020712,2]
[373272844,1752925949854,-151.0,0.00020712,2]
[373272845,1752925949863,-151.0,0.00020712,2]
[373272846,1752925949873,-151.0,0.00020712,2]
[373272847,1752925949882,-617.33,0.00020712,2]
[373272848,1752925949892,-480.0,0.00020712,2]
[373272849,1752925949902,-151.0,0.00020712,2]
[373272850,1752925949911,-151.0,0.00020712,2]
[373272851,1752925949921,-151.0,0.00020712,2]
[373272852,1752925949930,-151.0,0.00020712,2]
[373272853,1752925949940,-480.0,0.00020712,2]
[373272854,1752925949949,-151.0,0.00020712,2]
[373272855,1752925949958,-480.0,0.00020712,2]
[373272856,1752925949967,-151.0,0.00020712,2]
[373272857,1752925949977,-151.0,0.00020712,2]
[373272858,1752925949986,-273.663031,0.00020712,2]
[373272859,1752925949996,-1282.83,0.00020712,2]
[373272860,1752925950006,-480.0,0.00020712,2]
[373272861,1752925950015,-480.0,0.00020712,2]
[373272862,1752925950024,-480.0,0.00020712,2]
[373272863,1752925950033,-643.18,0.00020712,2]
[373272864,1752925950042,-901.37,0.00020712,2]
[373272865,1752925950052,-480.0,0.00020712,2]
[373272866,1752925950061,-1874.62,0.00020712,2]
[373272867,1752925950070,-480.0,0.00020712,2]
[373272868,1752925950080,-480.0,0.00020712,2]
[373272869,1752925950089,-2423.29,0.00020712,2]
[373272870,1752925950098,-480.0,0.00020712,2]
[373272871,1752925950108,-538.24,0.00020712,2]
[373272872,1752925950117,-733.01,0.00020712,2]
[373272873,1752925950126,-1074.29,0.00020712,2]
[373272874,1752925950135,-769.55,0.00020712,2]
[373272875,1752925950145,-570.78,0.00020712,2]
[373272876,1752925950155,-853.43,0.00020712,2]
[373272877,1752925950164,-1297.2,0.00020712,2]
[373272878,1752925950174,-1019.51,0.00020712,2]
[373272879,1752925950183,-480.0,0.00020712,2]
[373272880,1752925950192,-642.8,0.00020712,2]
[373272881,1752925950201,-480.0,0.00020712,2]
[373272882,1752925950211,-548.31,0.00020712,2]
[373272883,1752925950225,-1847.27,0.00020712,2]
[373272884,1752925950234,-394.83,0.00020712,2]
[373272885,1752925950246,-4709.51,0.00020712,2]
[373272886,1752925950256,-927.42,0.00020712,2]
[373272887,1752925950265,-480.0,0.00020712,2]
[373272888,1752925950274,-913.62,0.00020712,2]
[373272889,1752925950283,-480.0,0.00020712,2]
[373272890,1752925950294,-506.89,0.00020712,2]
[373272891,1752925950303,-859.02,0.00020712,2]
[373272892,1752925950313,-781.8,0.00020712,2]
[373272893,1752925950324,-1631.07,0.00020712,2]
[373272894,1752925950334,-644.67,0.00020712,2]
[373272895,1752925950344,-480.0,0.00020712,2]
[373272896,1752925950353,-604.504713,0.00020712,2]
[373272897,1752925950362,-604.504713,0.00020712,2]
[373272898,1752925950372,-604.504713,0.00020712,2]
[373272899,1752925950392,-604.504713,0.00020712,2]
[373272900,1752925950406,-604.504713,0.00020712,2]
[373272901,1752925950415,-596.88,0.00020712,2]
[373272902,1752925950425,-604.504713,0.00020712,2]
[373272903,1752925950434,-555.41,0.00020712,2]
[373272904,1752925950444,-604.504713,0.00020712,2]
[373272905,1752925950454,-604.504713,0.00020712,2]
[373272906,1752925950465,-604.504713,0.00020712,2]
[373272907,1752925950475,-604.504713,0.00020712,2]
[373272908,1752925950484,-604.504713,0.00020712,2]
[373272909,1752925950494,-480.0,0.00020712,2]
[373272910,1752925950503,-604.504713,0.00020712,2]
[373272911,1752925950512,-604.504713,0.00020712,2]
[373272912,1752925950522,-604.504715,0.00020712,2]
[373272913,1752925950531,-553.68,0.00020712,2]
[373272914,1752925950540,-480.0,0.00020712,2]
[373272915,1752925950550,-520.06,0.00020712,2]
[373272916,1752925950559,-480.0,0.00020712,2]
[373272917,1752925950568,-3337.6,0.00020712,2]
[373272918,1752925950577,-874.98,0.00020712,2]
[373272919,1752925950587,-480.0,0.00020712,2]
[373272920,1752925950596,-347.79,0.00020712,2]
[373272921,1752925950605,-1018.91,0.00020712,2]
[373272922,1752925950614,-480.0,0.00020712,2]
[373272923,1752925950624,-480.0,0.00020712,2]
[373272924,1752925950633,-575.14,0.00020712,2]
[373272925,1752925950643,-480.0,0.00020712,2]
[373272926,1752925950652,-950.21,0.00020712,2]
[373272927,1752925950662,-480.0,0.00020712,2]
[373272928,1752925950671,-716.19,0.00020712,2]
[373272929,1752925950680,-1603.56,0.00020712,2]
[373272930,1752925950690,-480.0,0.00020712,2]
[373272931,1752925950699,-785.71,0.00020712,2]
[373272932,1752925950708,-653.01,0.00020712,2]
[373272933,1752925950718,-480.0,0.00020712,2]
[373272934,1752925950727,-802.07,0.00020712,2]
[373272935,1752925950736,-1379.0,0.00020712,2]
[373272936,1752925950746,-616.21,0.00020712,2]
[373272937,1752925950757,-480.0,0.00020712,2]
[373272938,1752925950767,-480.0,0.00020712,2]
[373272939,1752925950777,-622.48,0.00020712,2]
[373272940,1752925950786,-14833.83,0.00020712,2]
[373272941,1752925950795,-480.0,0.00020712,2]
[373272942,1752925950804,-1000.0,0.00020713,2]
[373272943,1752925950814,-1000.0,0.00020716,2]
[373272944,1752925950823,-1000.0,0.00020719,2]
[373272945,1752925950833,-1000.0,0.00020722,2]
[373272946,1752925950843,-1000.0,0.00020725,2]
[373272947,1752925950851,-152.748161,0.00020725,2]
[373272948,1752925950861,-151.0,0.00020725,2]
[373272949,1752925950871,-1000.0,0.00020728,2]
[373272950,1752925950880,-1000.0,0.00020731,2]
[373272951,1752925950890,-1000.0,0.00020734,2]
[373272952,1752925950899,-1000.0,0.00020736,2]
[373272953,1752925950909,-1000.0,0.00020739,2]
[373272954,1752925950918,-1000.0,0.00020742,2]
[373272955,1752925950928,-1000.0,0.00020745,2]
[373272956,1752925950937,-17598.02151355,0.00020748,2]
[373272957,1752925950947,-1000.0,0.00020748,2]
[373272958,1752925950956,-1000.0,0.00020751,2]
[373272959,1752925950965,-1000.0,0.00020754,2]
[373272960,1752925950975,-1000.0,0.00020757,2]
[373272961,1752925950984,-1000.0,0.0002076,2]
[373272962,1752925950995,-1000.0,0.00020763,2]
[373272963,1752925951005,-1000.0,0.00020766,2]
[373272964,1752925951015,-1000.0,0.00020769,2]
[373272965,1752925951024,-324.19,0.00020771,2]
[373272966,1752925951033,-1000.0,0.00020772,2]
[373272967,1752925951043,-1000.0,0.00020775,2]
[373272968,1752925951052,-1000.0,0.00020778,2]
[373272969,1752925951062,-1000.0,0.00020781,2]
[373272970,1752925951071,-1000.0,0.00020784,2]
[373272971,1752925951080,-1000.0,0.00020787,2]
[373272972,1752925951090,-1000.0,0.0002079,2]
[373272973,1752925951100,-1000.0,0.00020792,2]
[373272974,1752925951109,-1000.0,0.00020795,2]
[373272975,1752925951119,-1000.0,0.00020798,2]
[373272976,1752925951128,-21802.37673545,0.000208,2]
[373272977,1752925951137,-1000.0,0.00020801,2]
[373272978,1752925951147,-1000.0,0.00020804,2]
[373272979,1752925951156,-1000.0,0.00020807,2]
[373272980,1752925951166,-1000.0,0.0002081,2]
[373272981,1752925951175,-1000.0,0.00020813,2]
[373272982,1752925951184,-1000.0,0.00020816,2]
[373272983,1752925951194,-1000.0,0.00020819,2]
[373272984,1752925951203,-480.0,0.00020821,2]
[373272985,1752925951213,-151.0,0.00020821,2]
[373272986,1752925951221,-167.992123,0.00020821,2]
[373272987,1752925951230,-151.576877,0.00020821,2]
[373272988,1752925951240,-480.0,0.00020821,2]
[373272989,1752925951252,-480.0,0.00020821,2]
[373272990,1752925951261,-480.0,0.00020821,2]
[373272991,1752925951270,-568.5,0.00020821,2]
[373272992,1752925951280,-480.0,0.00020821,2]
[373272993,1752925951290,-480.0,0.00020821,2]
[373272994,1752925951300,-151.0,0.00020821,2]
[373272995,1752925951309,-480.0,0.00020821,2]
[373272996,1752925951319,-151.0,0.00020821,2]
[373272997,1752925951328,-480.0,0.00020821,2]
[373272998,1752925951338,-151.0,0.00020821,2]
[373272999,1752925951347,-480.0,0.00020821,2]
[373273000,1752925951356,-480.0,0.00020821,2]
[373273001,1752925951365,-396.33,0.00020821,2]
[373273002,1752925951375,-223.17,0.00020821,2]
[373273003,1752925951385,-480.0,0.00020821,2]
[373273004,1752925951395,-623.6,0.00020821,2]
[373273005,1752925951404,-480.0,0.00020821,2]
[373273006,1752925951415,-480.0,0.00020821,2]
[373273007,1752925951425,-480.0,0.00020821,2]
[373273008,1752925951435,-480.0,0.00020821,2]
[373273009,1752925951444,-480.0,0.00020821,2]
[373273010,1752925951453,-480.0,0.00020821,2]
[373273011,1752925951463,-480.0,0.00020821,2]
[373273012,1752925951473,-546.31,0.00020821,2]
[373273013,1752925951482,-469.56,0.00020821,2]
[373273014,1752925951492,-365.27,0.00020821,2]
[373273015,1752925951501,-480.0,0.00020821,2]
[373273016,1752925951510,-480.0,0.00020821,2]
[373273017,1752925951519,-551.9,0.00020821,2]
[373273018,1752925951530,-480.0,0.00020821,2]
[373273019,1752925951541,-480.0,0.00020821,2]
[373273020,1752925951551,-480.0,0.00020821,2]
[373273021,1752925951562,-662.26,0.00020821,2]
[373273022,1752925951572,-215.96787369,0.00020821,2]
[373273023,1752925951581,-480.0,0.00020821,2]
[373273024,1752925951591,-472.99,0.00020821,2]
[373273025,1752925951600,-480.0,0.00020821,2]
[373273026,1752925951610,-480.0,0.00020821,2]
[373273027,1752925951619,-480.0,0.00020821,2]
[373273028,1752925951628,-540.62,0.00020821,2]
[373273029,1752925951638,-729.46,0.00020821,2]
[373273030,1752925951647,-189.42,0.00020821,2]
[373273031,1752925951657,-480.0,0.00020821,2]
[373273032,1752925951666,-297.47,0.00020821,2]
[373273033,1752925951676,-528.6,0.00020821,2]
[373273034,1752925951685,-480.0,0.00020821,2]
[373273035,1752925951695,-576.59,0.00020821,2]
[373273036,1752925951705,-254.61771026,0.00020821,2]
[373273037,1752925951715,-480.0,0.00020821,2]
[373273038,1752925951725,-480.0,0.00020821,2]
[373273039,1752925951735,-480.0,0.00020821,2]
[373273040,1752925951745,-480.0,0.00020821,2]
[373273041,1752925951755,-480.0,0.00020821,2]
[373273042,1752925951765,-568.37,0.00020821,2]
[373273043,1752925951775,-399.5,0.00020821,2]
[373273044,1752925951785,-865.04,0.00020821,2]
[373273045,1752925951796,-590.07,0.00020821,2]
[373273046,1752925951806,-480.0,0.00020821,2]
[373273047,1752925951816,-534.76,0.00020821,2]
[373273048,1752925951826,-167.84297038,0.00020821,2]
[373273049,1752925951835,-3423.93,0.00020821,2]
[373273050,1752925951845,-480.0,0.00020821,2]
[373273051,1752925951857,-480.0,0.00020821,2]
[373273052,1752925951867,-480.0,0.00020821,2]
[373273053,1752925951877,-318.01,0.00020821,2]
[373273054,1752925951887,-480.0,0.00020821,2]
[373273055,1752925951897,-480.0,0.00020821,2]
[373273056,1752925951906,-483.36,0.00020821,2]
[373273057,1752925951915,-534.08,0.00020821,2]
[373273058,1752925951926,-610.36,0.00020821,2]
[373273059,1752925951936,-706.76,0.00020821,2]
[373273060,1752925951947,-480.0,0.00020821,2]
[373273061,1752925951959,-1249.6,0.00020821,2]
[373273062,1752925951968,-517.22,0.00020821,2]
[373273063,1752925951978,-525.96,0.00020821,2]
[373273064,1752925951988,-480.0,0.00020821,2]
[373273065,1752925951998,-545.98,0.00020821,2]
[373273066,1752925952008,-1316.89,0.00020821,2]
[373273067,1752925952019,-728.86,0.00020821,2]
[373273068,1752925952028,-815.4,0.00020821,2]
[373273069,1752925952039,-1101.71,0.00020821,2]
[373273070,1752925952049,-748.45,0.00020821,2]
[373273071,1752925952058,-573.22,0.00020821,2]
[373273072,1752925952067,-1293.804523,0.00020821,2]
[373273073,1752925952077,-1336.055073,0.00020821,2]
[373273074,1752925952087,-597.88,0.00020821,2]
[373273075,1752925952097,-1617.28,0.00020821,2]
[373273076,1752925952106,-151.0,0.00020821,2]
[373273077,1752925952115,-745.78,0.00020821,2]
[373273078,1752925952125,-151.0,0.00020821,2]
[373273079,1752925952135,-249.646204,0.00020821,2]
[373273080,1752925952144,-690.32,0.00020821,2]
[373273081,1752925952153,-152.27404,0.00020821,2]
[373273082,1752925952163,-1070.92,0.00020821,2]
[373273083,1752925952173,-658.12,0.00020821,2]
[373273084,1752925952183,-934.12,0.00020821,2]
[373273085,1752925952192,-480.65,0.00020821,2]
[373273086,1752925952202,-1202.04,0.00020821,2]
[373273087,1752925952211,-1174.42,0.00020821,2]
[373273088,1752925952221,-815.86,0.00020821,2]
[373273089,1752925952231,-1628.87,0.00020821,2]
[373273090,1752925952241,-1494.63,0.00020821,2]
[373273091,1752925952255,-480.0,0.00020821,2]
[373273092,1752925952265,-830.69,0.00020821,2]
[373273093,1752925952275,-221.83,0.00020821,2]
[373273094,1752925952285,-543.78,0.00020821,2]
[373273095,1752925952297,-2089.05,0.00020821,2]
[373273096,1752925952307,-1437.33,0.00020821,2]
[373273097,1752925952316,-480.0,0.00020821,2]
[373273098,1752925952327,-657.72,0.00020821,2]
[373273099,1752925952338,-537.05,0.00020821,2]
[373273100,1752925952347,-480.0,0.00020821,2]
[373273101,1752925952357,-635.8,0.00020821,2]
[373273102,1752925952367,-581.67,0.00020821,2]
[373273103,1752925952376,-516.44,0.00020821,2]
[373273104,1752925952386,-1539.584669,0.00020821,2]
[373273105,1752925952395,-2843.45,0.00020821,2]
[373273106,1752925952405,-480.0,0.00020821,2]
[373273107,1752925952414,-935.75,0.00020821,2]
[373273108,1752925952424,-553.19,0.00020821,2]
[373273109,1752925952435,-629.13,0.00020821,2]
[373273110,1752925952444,-789.27,0.00020821,2]
[373273111,1752925952453,-480.0,0.00020821,2]
[373273112,1752925952463,-480.0,0.00020821,2]
[373273113,1752925952473,-480.0,0.00020821,2]
[373273114,1752925952483,-534.81,0.00020821,2]
[373273115,1752925952493,-480.0,0.00020821,2]
[373273116,1752925952503,-937.31,0.00020821,2]
[373273117,1752925952512,-480.0,0.00020821,2]
[373273118,1752925952522,-2978.15,0.00020821,2]
[373273119,1752925952531,-480.0,0.00020821,2]
[373273120,1752925952541,-97.65184543,0.00020821,2]
[373273121,1752925953379,-151.0,0.00017339,2]
[373273122,1752925953389,-99.1467485,0.000189,2]
[373273123,1752925953407,-52.8165749,0.000189,2]
[373273124,1752925953418,-1152.5711986,0.00019178,2]
[373273125,1752925953435,-1019.48080022,0.00019178,2]
[373273126,1752925969217,500.0,0.00015962,2]
[373273133,1752926404954,250.0,0.00015,2]
[373273143,1752926761619,196.58,0.00013699,2]
[373273145,1752926830173,230.0,0.0002501,120]
[373273146,1752926963144,-370.900031,0.00017228,2]
[373273147,1752926963165,-195.80586319,0.00017315,2]
[373273148,1752926963186,-151.0,0.00017395,2]
[373273149,1752926963206,-128.46388366,0.00017396,2]
[373273153,1752927031826,-300.0,0.00017396,2]
[373273154,1752927031837,-250.0,0.00017396,2]
[373273155,1752927031846,-151.0,0.00017396,2]
[373273156,1752927031856,-151.0,0.000174,2]
[373273157,1752927031865,-151.0,0.00017404,2]
[373273158,1752927031874,-151.0,0.00017406,2]
[373273159,1752927031884,-1000.0,0.00017415,2]
[373273160,1752927031894,-500.0,0.00017419,2]
[373273161,1752927031903,-164.75,0.00017419,2]
[373273162,1752927031912,-123.17708089,0.00017459,2]
[373273163,1752927031924,-430.93434079,0.00017459,2]
[373273168,1752927037681,-161.53857832,0.00017459,2]
[373273170,1752927037691,-903.36,0.00017478,2]
[373273172,1752927037700,-263.0,0.000175,2]
[373273173,1752927037710,-200.0,0.00017505,2]
[373273174,1752927037719,-150.0,0.00017513,2]
[373273175,1752927037729,-550.0,0.00017515,2]
[373273176,1752927037742,-1200.0,0.00017515,2]
[373273177,1752927037755,-300.0,0.00017515,2]
[373273178,1752927037765,-300.0,0.00017515,2]
[373273179,1752927037774,-151.0,0.00017516,2]
[373273180,1752927037784,-151.0,0.00017516,2]
[373273181,1752927037794,-151.0,0.00017516,2]
[373273182,1752927037803,-151.0,0.00017516,2]
[373273183,1752927037813,-151.0,0.00017516,2]
[373273184,1752927037822,-151.0,0.00017516,2]
[373273185,1752927037831,-151.0,0.00017516,2]
[373273186,1752927037841,-104.29142168,0.00017516,2]
[373273187,1752927037853,-46.70857832,0.00017516,2]
[373273188,1752927037863,-151.0,0.00017516,2]
[373273189,1752927037872,-151.0,0.00017516,2]
[373273190,1752927037882,-300.89293673,0.00017516,2]
[373273191,1752927037891,-500.0,0.00017516,2]
[373273192,1752927037900,-500.0,0.00017516,2]
[373273193,1752927037910,-151.0,0.00017516,2]
[373273194,1752927037919,-500.0,0.00017516,2]
[373273195,1752927037929,-360.94869935,0.00017516,2]
[373273196,1752927037944,-205.15028957,0.00017516,2]
[373273197,1752927037953,-529.29979097,0.00017525,2]
[373273198,1752927037965,-670.70020903,0.00017525,2]
[373273199,1752927037974,-1231.61109089,0.00017527,2]
[373273200,1752927037995,-22668.38890911,0.00017527,2]
[373273201,1752927038005,-190.0,0.00017537,7]
[373273202,1752927038015,-150.13,0.00017559,2]
[373273203,1752927038025,-17.91845435,0.00017662,2]
[373273204,1752927038036,-428.5976,0.00017662,2]
[373273205,1752927038091,-219.48394565,0.00017662,2]
[373273206,1752927038101,-1754.1,0.00017678,2]
[373273207,1752927038110,-250.0,0.0001774,2]
[373273209,1752927038120,-333.3,0.00017801,2]
[373273211,1752927038129,-150.0,0.00017812,2]
[373273213,1752927038138,-200.0,0.00017822,2]
[373273215,1752927038148,-2367.5468,0.0001789,2]
[373273217,1752927038157,-210.37288308,0.000179,2]
[373273219,1752927038166,-150.0,0.00017926,2]
[373273221,1752927038176,-150.0,0.00017926,2]
[373273223,1752927038187,-150.0,0.00017926,2]
[373273225,1752927038195,-150.0,0.00017926,2]
[373273227,1752927038205,-150.0,0.00017926,2]
[373273230,1752927038214,-150.0,0.00017926,2]
[373273231,1752927038224,-150.0,0.00017926,2]
[373273233,1752927038233,-151.19913521,0.00017926,2]
[373273236,1752927038243,-150.00000001,0.00017926,2]
[373273238,1752927038252,-170.85,0.00017974,2]
[373273240,1752927038262,-150.0,0.00018068,2]
[373273241,1752927038272,-150.0,0.00018092,2]
[373273244,1752927038282,-150.0,0.00018147,2]
[373273246,1752927038291,-150.0,0.00018211,2]
[373273248,1752927038302,-150.0,0.00018258,2]
[373273250,1752927038311,-187.72,0.00018329,2]
[373273252,1752927038321,-150.0,0.00018353,2]
[373273254,1752927038330,-150.0,0.00018369,2]
[373273256,1752927038340,-210.37288303,0.000184,2]
[373273258,1752927038349,-150.0,0.00018424,2]
[373273260,1752927038359,-150.0,0.00018424,2]
[373273262,1752927038369,-675.35,0.00018477,2]
[373273264,1752927038378,-675.35,0.00018486,2]
[373273266,1752927038388,-150.0,0.00018495,2]
[373273268,1752927038398,-675.35,0.00018496,2]
[373273270,1752927038407,-675.35,0.00018506,2]
[373273272,1752927038416,-675.35,0.00018516,2]
[373273274,1752927038425,-675.35,0.00018525,2]
[373273276,1752927038437,-675.35,0.00018535,2]
[373273278,1752927038447,-195.80586319,0.00018537,2]
[373273280,1752927038457,-675.35,0.00018545,2]
[373273282,1752927038467,-675.35,0.00018554,2]
[373273284,1752927038476,-675.35,0.00018564,2]
[373273286,1752927038485,-675.35,0.00018574,2]
[373273288,1752927038495,-391.55828648,0.00018584,2]
[373273291,1752927038519,-283.79171352,0.00018584,2]
[373273293,1752927038530,-150.0,0.0001859,2]
[373273295,1752927038539,-68.19528647,0.0001859,2]
[373273297,1752927038551,-81.80471353,0.0001859,2]
[373273299,1752927038560,-150.0,0.0001859,2]
[373273301,1752927038573,-167.26126801,0.00018593,2]
[373273304,1752927038584,-508.08873199,0.00018593,2]
[373273306,1752927038594,-150.0,0.00018601,2]
[373273308,1752927038603,-675.35,0.00018603,2]
[373273310,1752927038612,-675.35,0.00018613,2]
[373273312,1752927038622,-675.35,0.00018623,2]
[373273314,1752927038631,-675.35,0.00018632,2]
[373273316,1752927038640,-150.0,0.00018637,2]
[373273317,1752927038657,-675.35,0.00018642,2]
[373273319,1752927038667,-675.35,0.00018652,2]
[373273321,1752927038677,-675.35,0.00018661,2]
[373273323,1752927038688,-150.0,0.00018756,2]
[373273326,1752927038698,-278.91,0.0001877,2]
[373273328,1752927038707,-150.0,0.0001878,2]
[373273330,1752927038717,-257.0,0.0001878,2]
[373273332,1752927038727,-150.0,0.00018811,2]
[373273333,1752927038736,-210.37288303,0.000189,2]
[373273335,1752927038745,-150.0,0.00018922,2]
[373273337,1752927038754,-150.0,0.00018922,2]
[373273339,1752927038764,-150.0,0.00018922,2]
[373273341,1752927038773,-187.72,0.00019016,2]
[373273343,1752927038783,-150.0,0.00019033,2]
[373273345,1752927038792,-300.0,0.00019047,2]
[373273348,1752927038802,-250.0,0.00019054,2]
[373273351,1752927038811,-150.0,0.00019064,2]
[373273354,1752927038821,-5069.07706647,0.00019078,2]
[373273357,1752927038830,-5158.87338135,0.00019078,2]
[373273360,1752927038840,-479.10385906,0.00019078,2]
[373273363,1752927038849,-643.49157143,0.00019078,2]
[373273366,1752927038859,-306.47943939,0.00019078,2]
[373273368,1752927038868,-5000.0,0.00019078,2]
[373273371,1752927038877,-2500.0,0.00019078,2]
[373273373,1752927038886,-150.0,0.00019088,2]
[373273375,1752927038896,-517.0,0.00019131,2]
[373273377,1752927038906,-300.0,0.00019135,2]
[373273379,1752927038915,-250.0,0.00019135,2]
[373273381,1752927038925,-299.0,0.00019143,2]
[373273383,1752927038934,-455.01,0.00019168,2]
[373273385,1752927038943,-455.01,0.00019168,2]
[373273387,1752927038952,-199.83,0.00019168,2]
[373273389,1752927038961,-155.0,0.00019177,2]
[373273391,1752927038971,-488.70705713,0.00019177,2]
[373273393,1752927038980,-464.66913329,0.00019178,2]
[373273395,1752927038989,-193.35926419,0.00019178,2]
[373273397,1752927038999,-480.0,0.00019178,2]
[373273399,1752927039009,-470.06003331,0.00019178,2]
[373273401,1752927039019,-470.98698873,0.00019178,2]
[373273403,1752927039028,-463.62949213,0.00019178,2]
[373273405,1752927039038,-464.0163538,0.00019178,2]
[373273407,1752927039047,-461.76065158,0.00019178,2]
[373273409,1752927039056,-480.0,0.00019178,2]
[373273411,1752927039066,-480.0,0.00019178,2]
[373273413,1752927039075,-480.0,0.00019178,2]
[373273415,1752927039084,-480.0,0.00019178,2]
[373273417,1752927039094,-461.8305548,0.00019178,2]
[373273419,1752927039103,-461.61137254,0.00019178,2]
[373273421,1752927039113,-480.0,0.00019178,2]
[373273423,1752927039123,-480.0,0.00019178,2]
[373273425,1752927039132,-461.34747792,0.00019178,2]
[373273427,1752927039141,-480.0,0.00019178,2]
[373273429,1752927039151,-461.21858668,0.00019178,2]
[373273430,1752927039160,-462.54153907,0.00019178,2]
[373273433,1752927039170,-461.19121766,0.00019178,2]
[373273434,1752927039179,-460.0,0.00019178,2]
[373273437,1752927039190,-461.92629423,0.00019178,2]
[373273438,1752927039199,-467.00129776,0.00019178,2]
[373273439,1752927039209,-480.0,0.00019178,2]
[373273440,1752927039218,-462.65753096,0.00019178,2]
[373273441,1752927039227,-463.9824237,0.00019178,2]